[Event "Elite Hotels Open 2023"]
[Site "Elite Stadshotellet, Kungsgatan 6, Vaxjo, Sweden"]
[Date "2023.02.12"]
[Round "8.17"]
[White "Ask, Josef"]
[Black "Falkevall, Axel"]
[Result "0-1"]
[TimeControl "15 minutes + 5 seconds per move from move one (Round 1 - 4) / 90 minutes + 30 seconds per move from move one (Round 5 - 8)"]
[WhiteTitle "FM"]
[BlackTitle "FM"]
[WhiteFideId "1704583"]
[BlackFideId "1735560"]
[WhiteElo "2169"]
[BlackElo "2299"]

1. e4 {[%clk 01:30:58]} {[%emt 00:00:01]} e5 {[%clk 01:30:56]} {[%emt
00:00:04]} 2. Nc3 {[%clk 01:31:24]} {[%emt 00:00:04]} Nf6 {[%clk 01:31:22]}
{[%emt 00:00:04]} 3. g3 {[%clk 01:31:50]} {[%emt 00:00:05]} Bc5 {[%clk
01:31:14]} {[%emt 00:00:38]} 4. Bg2 {[%clk 01:32:10]} {[%emt 00:00:09]} c6
{[%clk 01:30:51]} {[%emt 00:00:53]} 5. d3 {[%clk 01:30:48]} {[%emt 00:01:52]}
O-O {[%clk 01:30:56]} {[%emt 00:00:25]} 6. h3 {[%clk 01:30:02]} {[%emt
00:01:16]} h6 {[%clk 01:29:51]} {[%emt 00:01:36]} 7. Nge2 {[%clk 01:30:10]}
{[%emt 00:00:22]} d5 {[%clk 01:28:53]} {[%emt 00:01:28]} 8. O-O {[%clk
01:29:32]} {[%emt 00:01:07]} dxe4 {[%clk 01:24:39]} {[%emt 00:04:45]} 9. dxe4
{[%clk 01:29:43]} {[%emt 00:00:19]} Qe7 {[%clk 01:24:49]} {[%emt 00:00:20]} 10.
Kh2 {[%clk 01:29:16]} {[%emt 00:00:57]} b5 {[%clk 01:14:27]} {[%emt 00:10:52]}
11. a3 {[%clk 01:27:19]} {[%emt 00:02:28]} a5 {[%clk 01:13:23]} {[%emt
00:01:33]} 12. b3 {[%clk 01:26:12]} {[%emt 00:01:36]} Ba6 {[%clk 01:11:21]}
{[%emt 00:02:33]} 13. Qe1 {[%clk 01:22:43]} {[%emt 00:03:58]} Rd8 {[%clk
00:59:53]} {[%emt 00:11:58]} 14. Nd1 {[%clk 01:21:52]} {[%emt 00:01:22]} b4
{[%clk 00:59:46]} {[%emt 00:00:37]} 15. a4 {[%clk 01:21:59]} {[%emt 00:00:23]}
Ra7 {[%clk 00:59:14]} {[%emt 00:01:01]} 16. Ne3 {[%clk 01:21:48]} {[%emt
00:00:42]} Bxe3 {[%clk 00:58:33]} {[%emt 00:01:11]} 17. Bxe3 {[%clk 01:22:12]}
{[%emt 00:00:06]} c5 {[%clk 00:58:41]} {[%emt 00:00:22]} 18. f4 {[%clk
01:20:23]} {[%emt 00:02:19]} Nc6 {[%clk 00:47:56]} {[%emt 00:11:14]} 19. Rf2
{[%clk 01:19:58]} {[%emt 00:00:55]} Rad7 {[%clk 00:45:00]} {[%emt 00:03:26]} 20.
f5 {[%clk 01:17:49]} {[%emt 00:02:40]} c4 {[%clk 00:43:46]} {[%emt 00:01:44]}
21. Bb6 {[%clk 01:17:10]} {[%emt 00:01:08]} Rb8 {[%clk 00:43:13]} {[%emt
00:01:03]} 22. Be3 {[%clk 01:17:31]} {[%emt 00:00:09]} Rc8 {[%clk 00:37:42]}
{[%emt 00:06:01]} 23. Rc1 {[%clk 01:16:17]} {[%emt 00:01:44]} cxb3 {[%clk
00:36:28]} {[%emt 00:01:45]} 24. cxb3 {[%clk 01:16:41]} {[%emt 00:00:05]} Rd3
{[%clk 00:36:33]} {[%emt 00:00:25]} 25. Bc5 {[%clk 01:15:52]} {[%emt 00:01:20]}
Qd7 {[%clk 00:36:19]} {[%emt 00:00:44]} 26. Rb1 {[%clk 01:15:34]} {[%emt
00:00:48]} Nd8 {[%clk 00:33:39]} {[%emt 00:03:09]} 27. Bb6 {[%clk 01:15:17]}
{[%emt 00:00:48]} Nb7 {[%clk 00:33:37]} {[%emt 00:00:31]} 28. Nc1 {[%clk
01:14:26]} {[%emt 00:01:22]} Rd1 {[%clk 00:32:35]} {[%emt 00:01:32]} 29. Qe3
{[%clk 01:14:19]} {[%emt 00:00:36]} Rc3 {[%clk 00:32:40]} {[%emt 00:00:25]} 0-1

[Event "Elite Hotels Open 2023"]
[Site "Elite Stadshotellet, Kungsgatan 6, Vaxjo, Sweden"]
[Date "2023.02.12"]
[Round "8.18"]
[White "Wiklund, Johan"]
[Black "Johansson, Ulf"]
[Result "0-1"]
[TimeControl "15 minutes + 5 seconds per move from move one (Round 1 - 4) / 90 minutes + 30 seconds per move from move one (Round 5 - 8)"]
[WhiteFideId "1713817"]
[BlackFideId "1701380"]
[WhiteElo "1899"]
[BlackElo "2205"]

1. Nf3 {[%clk 01:30:56]} {[%emt 00:00:03]} Nf6 {[%clk 01:30:54]} {[%emt
00:00:06]} 2. c4 {[%clk 01:31:05]} {[%emt 00:00:21]} g6 {[%clk 01:31:13]}
{[%emt 00:00:11]} 3. b3 {[%clk 01:28:47]} {[%emt 00:02:47]} Bg7 {[%clk
01:31:02]} {[%emt 00:00:42]} 4. Bb2 {[%clk 01:29:12]} {[%emt 00:00:06]} O-O
{[%clk 01:31:25]} {[%emt 00:00:06]} 5. g3 {[%clk 01:29:26]} {[%emt 00:00:15]}
c6 {[%clk 01:30:54]} {[%emt 00:01:02]} 6. Bg2 {[%clk 01:29:20]} {[%emt
00:00:36]} d5 {[%clk 01:30:39]} {[%emt 00:00:45]} 7. cxd5 {[%clk 01:27:32]}
{[%emt 00:02:18]} cxd5 {[%clk 01:31:02]} {[%emt 00:00:08]} 8. O-O {[%clk
01:27:32]} {[%emt 00:00:29]} Nc6 {[%clk 01:31:25]} {[%emt 00:00:06]} 9. d3
{[%clk 01:27:13]} {[%emt 00:00:49]} d4 {[%clk 01:30:46]} {[%emt 00:01:10]} 10.
Na3 {[%clk 01:24:41]} {[%emt 00:03:03]} a6 {[%clk 01:29:02]} {[%emt 00:02:14]}
11. Nc4 {[%clk 01:23:21]} {[%emt 00:01:50]} Nd5 {[%clk 01:28:54]} {[%emt
00:00:37]} 12. a4 {[%clk 01:22:00]} {[%emt 00:01:51]} b6 {[%clk 01:23:14]}
{[%emt 00:06:11]} 13. a5 {[%clk 01:09:18]} {[%emt 00:13:11]} b5 {[%clk
01:20:56]} {[%emt 00:02:48]} 14. Nb6 {[%clk 01:09:46]} {[%emt 00:00:03]} Nxb6
{[%clk 01:21:21]} {[%emt 00:00:05]} 15. axb6 {[%clk 01:10:12]} {[%emt
00:00:03]} Bb7 {[%clk 01:21:35]} {[%emt 00:00:16]} 16. Rc1 {[%clk 01:05:09]}
{[%emt 00:05:33]} Qxb6 {[%clk 01:21:58]} {[%emt 00:00:08]} 17. Qc2 {[%clk
01:01:45]} {[%emt 00:03:54]} Rfc8 {[%clk 01:17:59]} {[%emt 00:04:29]} 18. Qb1
{[%clk 01:01:11]} {[%emt 00:01:03]} e5 {[%clk 01:16:38]} {[%emt 00:01:51]} 19.
Ba3 {[%clk 00:58:19]} {[%emt 00:03:23]} b4 {[%clk 01:15:45]} {[%emt 00:01:23]}
20. Bb2 {[%clk 00:58:47]} {[%emt 00:00:02]} Ne7 {[%clk 01:15:36]} {[%emt
00:00:38]} 21. Rxc8+ {[%clk 00:57:30]} {[%emt 00:01:46]} Rxc8 {[%clk 01:15:59]}
{[%emt 00:00:07]} 22. Rc1 {[%clk 00:56:06]} {[%emt 00:01:54]} Rxc1+ {[%clk
01:15:51]} {[%emt 00:00:39]} 23. Qxc1 {[%clk 00:55:12]} {[%emt 00:01:25]} Bd5
{[%clk 01:15:07]} {[%emt 00:01:13]} 24. Qc2 {[%clk 00:52:44]} {[%emt 00:02:57]}
Qc6 {[%clk 01:15:07]} {[%emt 00:00:31]} 25. Qxc6 {[%clk 00:46:41]} {[%emt
00:06:34]} Nxc6 {[%clk 01:15:29]} {[%emt 00:00:06]} 26. Nd2 {[%clk 00:46:46]}
{[%emt 00:00:25]} Bxg2 {[%clk 01:15:53]} {[%emt 00:00:07]} 27. Kxg2 {[%clk
00:47:14]} {[%emt 00:00:02]} Na5 {[%clk 01:15:39]} {[%emt 00:00:44]} 28. e3
{[%clk 00:47:03]} {[%emt 00:00:41]} f5 {[%clk 01:14:43]} {[%emt 00:01:27]} 29.
Kf3 {[%clk 00:47:02]} {[%emt 00:00:31]} Kf7 {[%clk 01:15:01]} {[%emt 00:00:12]}
30. Ke2 {[%clk 00:46:55]} {[%emt 00:00:37]} Ke6 {[%clk 01:15:07]} {[%emt
00:00:24]} 31. Bc1 {[%clk 00:45:28]} {[%emt 00:01:58]} Kd5 {[%clk 01:14:58]}
{[%emt 00:00:38]} 32. exd4 {[%clk 00:29:53]} {[%emt 00:16:05]} exd4 {[%clk
01:10:38]} {[%emt 00:04:50]} 33. f4 {[%clk 00:27:55]} {[%emt 00:02:28]} Kc5
{[%clk 01:09:44]} {[%emt 00:01:24]} 34. Kd1 {[%clk 00:23:20]} {[%emt 00:05:04]}
Bf6 {[%clk 01:09:58]} {[%emt 00:00:18]} 35. Kc2 {[%clk 00:23:10]} {[%emt
00:00:40]} Nc6 {[%clk 01:10:15]} {[%emt 00:00:13]} 36. Nf3 {[%clk 00:21:26]}
{[%emt 00:02:13]} Ne7 {[%clk 01:10:34]} {[%emt 00:00:11]} 37. Bd2 {[%clk
00:19:17]} {[%emt 00:02:38]} Nd5 {[%clk 01:10:58]} {[%emt 00:00:07]} 38. Bc1
{[%clk 00:17:30]} {[%emt 00:02:16]} a5 {[%clk 01:11:09]} {[%emt 00:00:21]} 39.
Bd2 {[%clk 00:17:06]} {[%emt 00:00:53]} Kb5 {[%clk 01:10:44]} {[%emt 00:00:55]}
40. Be1 {[%clk 00:15:32]} {[%emt 00:02:03]} Ne3+ {[%clk 01:08:32]} {[%emt
00:02:43]} 41. Kd2 {[%clk 00:11:11]} {[%emt 00:04:51]} a4 {[%clk 00:59:22]}
{[%emt 00:09:40]} 42. bxa4+ {[%clk 00:11:18]} {[%emt 00:00:23]} Kxa4 {[%clk
00:59:46]} {[%emt 00:00:07]} 43. Bf2 {[%clk 00:09:07]} {[%emt 00:02:40]} Ka3
{[%clk 00:59:15]} {[%emt 00:01:03]} 44. Bxe3 {[%clk 00:08:51]} {[%emt
00:00:46]} dxe3+ {[%clk 00:59:38]} {[%emt 00:00:06]} 45. Kxe3 {[%clk 00:09:04]}
{[%emt 00:00:17]} Bc3 {[%clk 00:59:17]} {[%emt 00:00:51]} 46. Ne5 {[%clk
00:07:41]} {[%emt 00:01:53]} Bxe5 {[%clk 00:59:38]} {[%emt 00:00:10]} 47. fxe5
{[%clk 00:07:55]} {[%emt 00:00:16]} b3 {[%clk 01:00:04]} {[%emt 00:00:04]} 0-1